[Event "Weekendtournooi Groningen & PK NOSBO"]
[Site "Groningen, Netherlands"]
[Date "2023.05.20"]
[Round "4.3"]
[White "Jacobs, Florian"]
[Black "Bruggink, Tycho"]
[Result "1-0"]
[TimeControl "90min + 30sec/move"]
[WhiteElo "2227"]
[BlackElo "1873"]

1. d4 {[%clk 01:30:55]} {[%emt 00:09:47]} Nf6 {[%clk 01:30:58]} 2. c4 {[%clk
01:31:19]} {[%emt 00:00:02]} e6 {[%clk 01:31:26]} {[%emt 00:00:29]} 3. Nf3
{[%clk 01:31:06]} d5 {[%clk 01:31:52]} 4. Nc3 {[%clk 01:31:32]} c6 {[%clk
01:32:20]} 5. e3 {[%clk 01:29:03]} Nbd7 {[%clk 01:30:17]} 6. Be2 {[%clk
01:29:26]} dxc4 {[%clk 01:30:02]} 7. a4 {[%clk 01:29:45]} Bb4 {[%clk 01:23:08]}
8. O-O {[%clk 01:29:40]} Bxc3 {[%clk 01:20:02]} 9. bxc3 {[%clk 01:29:56]} b5
{[%clk 01:20:29]} 10. Ba3 {[%clk 01:29:45]} Ne4 {[%clk 01:15:33]} 11. Qc2
{[%clk 01:28:56]} f5 {[%clk 01:12:56]} 12. Nd2 {[%clk 01:22:26]} Nxd2 {[%clk
01:12:08]} 13. Qxd2 {[%clk 01:22:50]} Kf7 {[%clk 01:12:31]} 14. e4 {[%clk
01:08:18]} Nf6 {[%clk 00:56:24]} 15. exf5 {[%clk 01:08:22]} exf5 {[%clk
00:55:40]} 16. Bf3 {[%clk 01:07:40]} Nd5 {[%clk 00:55:09]} 17. Rfe1 {[%clk
01:08:00]} Be6 {[%clk 00:50:39]} 18. axb5 {[%clk 01:06:02]} cxb5 {[%clk
00:50:54]} 19. Rxe6 {[%clk 00:55:50]} {[%emt 00:00:17]} Kxe6 {[%clk 00:51:12]}
{[%emt 00:00:17]} 20. Re1+ {[%clk 00:56:15]} Kf7 {[%clk 00:39:03]} {[%emt
00:12:36]} 21. Re5 {[%clk 00:33:00]} {[%emt 00:23:43]} Nf6 {[%clk 00:39:28]}
{[%emt 00:00:09]} 22. Re7+ {[%clk 00:22:53]} {[%emt 00:10:54]} Qxe7 {[%clk
00:26:46]} {[%emt 00:13:26]} 23. Bxe7 {[%clk 00:23:07]} Kxe7 {[%clk 00:27:14]}
24. Bxa8 {[%clk 00:23:31]} Rxa8 {[%clk 00:27:43]} 25. Qe3+ {[%clk 00:23:45]}
{[%emt 00:00:07]} Kf7 {[%clk 00:27:23]} {[%emt 00:00:49]} 26. h3 {[%clk
00:22:59]} {[%emt 00:01:16]} Nd5 {[%clk 00:22:06]} {[%emt 00:05:47]} 27. Qe5
{[%clk 00:22:05]} {[%emt 00:01:23]} Rd8 {[%clk 00:22:11]} {[%emt 00:00:30]} 28.
Qxf5+ {[%clk 00:20:02]} {[%emt 00:02:29]} Kg8 {[%clk 00:22:28]} {[%emt
00:00:43]} 29. Qg5 {[%clk 00:20:06]} {[%emt 00:00:04]} Rd7 {[%clk 00:22:02]}
{[%emt 00:01:00]} 30. Qg4 {[%clk 00:18:49]} {[%emt 00:02:14]} Rd8 {[%clk
00:22:18]} 31. Qg5 {[%clk 00:16:42]} {[%emt 00:02:47]} Rd7 {[%clk 00:22:25]} 32.
Qg3 {[%clk 00:17:05]} {[%emt 00:00:05]} Rd8 {[%clk 00:22:40]} {[%emt 00:00:06]}
33. h4 {[%clk 00:11:23]} {[%emt 00:06:13]} a5 {[%clk 00:22:53]} {[%emt
00:00:15]} 34. Qg5 {[%clk 00:11:36]} {[%emt 00:00:17]} Rd7 {[%clk 00:23:17]}
{[%emt 00:00:39]} 35. Qf5 {[%clk 00:11:52]} {[%emt 00:00:09]} Rd8 {[%clk
00:23:03]} {[%emt 00:00:25]} 36. Qe6+ {[%clk 00:11:47]} {[%emt 00:00:28]} Kh8
{[%clk 00:21:32]} {[%emt 00:02:01]} 37. Qa6 {[%clk 00:12:10]} {[%emt 00:00:12]}
Nxc3 {[%clk 00:17:15]} {[%emt 00:04:39]} 38. Qxa5 {[%clk 00:12:29]} {[%emt
00:00:11]} Ne2+ {[%clk 00:17:43]} {[%emt 00:00:05]} 39. Kf1 {[%clk 00:12:52]}
{[%emt 00:00:05]} 1-0

[Event "Weekendtournooi Groningen & PK NOSBO"]
[Site "Groningen, Netherlands"]
[Date "2023.05.20"]
[Round "4.4"]
[White "Aden, Tammo"]
[Black "Hummel, Paul"]
[Result "0-1"]
[TimeControl "90min + 30sec/move"]
[WhiteElo "1998"]
[BlackElo "2152"]

1. d4 {[%clk 01:30:58]} {[%emt 00:00:50]} Nf6 {[%clk 01:28:28]} {[%emt
00:01:58]} 2. Nf3 {[%clk 01:31:21]} e6 {[%clk 01:28:49]} {[%emt 00:00:06]} 3.
c4 {[%clk 01:31:42]} {[%emt 00:00:07]} b6 {[%clk 01:28:03]} {[%emt 00:01:17]} 4.
g3 {[%clk 01:32:03]} {[%emt 00:00:43]} Bb7 {[%clk 01:28:27]} 5. Bg2 {[%clk
01:32:28]} Be7 {[%clk 01:28:53]} 6. O-O {[%clk 01:32:48]} {[%emt 00:00:16]} O-O
{[%clk 01:29:20]} 7. Nc3 {[%clk 01:33:11]} Ne4 {[%clk 01:29:41]} 8. Qc2 {[%clk
01:32:29]} {[%emt 00:01:03]} Nxc3 {[%clk 01:29:24]} {[%emt 00:00:53]} 9. bxc3
{[%clk 01:32:38]} {[%emt 00:00:16]} f5 {[%clk 01:24:58]} {[%emt 00:05:17]} 10.
d5 {[%clk 01:31:11]} {[%emt 00:01:36]} Qc8 {[%clk 01:15:25]} {[%emt 00:10:03]}
11. Nd4 {[%clk 01:27:35]} {[%emt 00:04:41]} c5 {[%clk 01:08:18]} {[%emt
00:07:02]} 12. Nb3 {[%clk 01:20:10]} {[%emt 00:07:54]} e5 13. f4 {[%clk
01:20:10]} e4 14. g4 {[%clk 01:20:10]} g6 15. g5 {[%clk 01:20:10]} Na6 16. Be3
{[%clk 01:20:10]} Nc7 17. h4 {[%clk 01:20:10]} Ne8 18. h5 {[%clk 01:20:10]} Nd6
19. Nd2 {[%clk 01:20:10]} gxh5 20. Kf2 {[%clk 01:20:10]} h6 21. Rh1 {[%clk
01:20:10]} Qe8 22. gxh6 {[%clk 01:20:10]} Kh8 23. Rag1 {[%clk 01:20:10]} Rg8 24.
h7 {[%clk 01:20:10]} Rg4 25. Bh3 {[%clk 01:20:10]} Rxg1 26. Rxg1 {[%clk
01:20:10]} Qf7 27. Rg2 {[%clk 01:20:10]} Qxh7 28. Qd1 {[%clk 01:20:10]} Rg8 29.
Qg1 {[%clk 01:20:10]} Rxg2+ 30. Qxg2 {[%clk 01:20:10]} Qg7 31. Qxg7+ {[%clk
01:20:10]} Kxg7 32. Kg3 {[%clk 01:20:10]} h4+ 33. Kg2 {[%clk 01:20:10]} Bf6 34.
Bf2 {[%clk 01:20:10]} Bxc3 35. Nf1 {[%clk 01:20:10]} Bf6 36. Ne3 {[%clk
01:20:10]} Kg6 37. Kf1 {[%clk 01:20:10]} Bd4 38. Ng2 {[%clk 01:20:10]} Bxf2 39.
Kxf2 {[%clk 01:20:10]} Ba6 40. Ne3 {[%clk 01:20:10]} Kf6 41. a4 {[%clk
01:20:10]} Bxc4 42. Bxf5 {[%clk 01:20:10]} Nxf5 43. Nxc4 {[%clk 01:20:10]} h3
44. Ne5 {[%clk 01:20:10]} Nd6 45. Nxd7+ {[%clk 01:20:10]} Kf5 46. Kg3 {[%clk
01:20:10]} c4 47. Nb8 {[%clk 01:20:10]} h2 48. Kxh2 {[%clk 01:20:10]} Kxf4 49.
Nc6 {[%clk 01:20:10]} c3 50. Nd4 {[%clk 01:20:10]} Ke3 51. Nb5 {[%clk
01:20:10]} Nxb5 52. axb5 {[%clk 01:20:10]} c2 0-1

[Event "Weekendtournooi Groningen & PK NOSBO"]
[Site "Groningen, Netherlands"]
[Date "2023.05.20"]
[Round "4.6"]
[White "Van Foreest, Nanne"]
[Black "Kardoeus, David"]
[Result "1/2-1/2"]
[TimeControl "90min + 30sec/move"]
[WhiteElo "1914"]
[BlackElo "2158"]

1. e4 {[%clk 01:30:58]} {[%emt 00:04:04]} c5 {[%clk 01:19:03]} 2. c3 {[%clk
01:31:23]} {[%emt 00:00:05]} Nf6 {[%clk 01:18:12]} 3. e5 {[%clk 01:31:34]} Nd5
{[%clk 01:18:34]} 4. d4 {[%clk 01:31:48]} cxd4 {[%clk 01:18:41]} 5. Nf3 {[%clk
01:31:55]} d6 {[%clk 01:16:47]} 6. cxd4 {[%clk 01:31:59]} {[%emt 00:00:19]} Nc6
{[%clk 01:16:40]} 7. Bc4 {[%clk 01:32:03]} Be6 {[%clk 01:16:37]} 8. Qb3 {[%clk
01:20:26]} Na5 {[%clk 01:03:33]} 9. Qb5+ {[%clk 01:20:01]} Bd7 {[%clk
01:00:32]} 10. Qxd5 {[%clk 01:19:13]} e6 {[%clk 00:54:32]} 11. Qe4 {[%clk
01:17:54]} Nxc4 {[%clk 00:54:54]} 12. O-O {[%clk 01:16:10]} Bc6 {[%clk
00:50:04]} 13. Qg4 {[%clk 01:09:21]} h5 {[%clk 00:37:58]} 14. Qg3 {[%clk
01:08:40]} dxe5 {[%clk 00:29:32]} {[%emt 00:04:28]} 15. dxe5 {[%clk 01:07:17]}
{[%emt 00:01:54]} Qd3 {[%clk 00:21:49]} {[%emt 00:08:10]} 16. Nc3 {[%clk
00:56:40]} {[%emt 00:11:07]} O-O-O {[%clk 00:14:00]} {[%emt 00:08:18]} 17. Bg5
{[%clk 00:56:06]} {[%emt 00:01:04]} h4 {[%clk 00:03:21]} {[%emt 00:11:10]} 18.
Bxh4 {[%clk 00:54:40]} {[%emt 00:02:07]} Re8 {[%clk 00:01:52]} {[%emt
00:01:51]} 19. Qf4 {[%clk 00:46:19]} {[%emt 00:08:49]} Bxf3 {[%clk 00:00:40]}
{[%emt 00:01:42]} 20. gxf3 {[%clk 00:46:43]} {[%emt 00:00:31]} Rxh4 {[%clk
00:00:45]} {[%emt 00:00:13]} 21. Qxh4 {[%clk 00:46:47]} {[%emt 00:00:14]} Nd2
{[%clk 00:00:35]} {[%emt 00:00:39]} 22. Qf4 {[%clk 00:44:25]} {[%emt 00:02:53]}
Nxf1 {[%clk 00:00:57]} {[%emt 00:00:23]} 23. Rxf1 {[%clk 00:44:51]} Qg6+ {[%clk
00:00:32]} {[%emt 00:00:56]} 24. Kh1 {[%clk 00:45:20]} Kb8 {[%clk 00:00:41]}
{[%emt 00:00:10]} 25. Rg1 {[%clk 00:44:53]} {[%emt 00:00:57]} Qf5 {[%clk
00:00:45]} {[%emt 00:00:31]} 26. Qxf5 {[%clk 00:45:04]} {[%emt 00:00:13]} exf5
{[%clk 00:01:11]} {[%emt 00:00:09]} 27. f4 {[%clk 00:45:25]} {[%emt 00:00:05]}
g6 {[%clk 00:00:36]} {[%emt 00:01:04]} 28. Rd1 {[%clk 00:44:36]} {[%emt
00:01:19]} Bh6 {[%clk 00:00:32]} {[%emt 00:00:34]} 29. Nd5 {[%clk 00:43:40]}
{[%emt 00:01:50]} Rc8 {[%clk 00:00:36]} {[%emt 00:00:09]} 30. Ne7 {[%clk
00:43:09]} {[%emt 00:00:59]} Re8 {[%clk 00:00:48]} {[%emt 00:00:43]} 31. Nd5
{[%clk 00:42:56]} {[%emt 00:00:14]} Rc8 {[%clk 00:01:16]} {[%emt 00:00:12]} 32.
Rd2 {[%clk 00:43:09]} {[%emt 00:00:09]} Rc4 {[%clk 00:01:25]} {[%emt 00:00:21]}
33. Kg2 {[%clk 00:42:35]} {[%emt 00:01:03]} Bxf4 {[%emt 00:01:00]} 34. Nxf4
{[%clk 00:42:50]} {[%emt 00:00:17]} Rxf4 {[%clk 00:01:28]} 35. Rd7 {[%clk
00:43:11]} {[%emt 00:00:11]} Re4 {[%clk 00:00:50]} {[%emt 00:01:01]} 36. Re7
{[%clk 00:42:36]} {[%emt 00:01:05]} a5 {[%clk 00:01:08]} {[%emt 00:00:38]} 37.
Kf1 {[%clk 00:40:54]} {[%emt 00:01:46]} a4 {[%clk 00:01:27]} {[%emt 00:00:28]}
38. f3 {[%clk 00:40:50]} {[%emt 00:00:20]} Rb4 {[%clk 00:00:41]} {[%emt
00:01:13]} 39. Rxf7 {[%clk 00:41:06]} {[%emt 00:00:17]} Kc8 {[%clk 00:00:43]}
{[%emt 00:01:13]} 40. b3 {[%clk 00:40:33]} {[%emt 00:00:23]} axb3 {[%clk
00:00:45]} {[%emt 00:00:22]} 41. axb3 {[%clk 00:41:02]} {[%emt 00:00:04]} g5
{[%clk 00:00:35]} {[%emt 00:00:35]} 42. Rxf5 {[%clk 00:41:12]} {[%emt
00:00:20]} g4 {[%clk 00:00:34]} {[%emt 00:00:44]} 43. f4 {[%clk 00:41:27]}
{[%emt 00:00:05]} Rxb3 {[%clk 00:00:59]} {[%emt 00:00:05]} 44. e6 {[%clk
00:39:49]} {[%emt 00:02:05]} Kd8 {[%clk 00:01:22]} {[%emt 00:00:39]} 45. Rd5+
{[%clk 00:39:40]} {[%emt 00:00:09]} Ke7 {[%clk 00:01:24]} {[%emt 00:00:26]} 46.
f5 {[%clk 00:40:04]} {[%emt 00:00:34]} Kf6 {[%clk 00:00:51]} {[%emt 00:00:37]}
47. Re5 {[%clk 00:36:08]} {[%emt 00:04:32]} Rf3+ {[%clk 00:00:34]} {[%emt
00:00:39]} 48. Kg2 {[%clk 00:36:37]} {[%emt 00:00:03]} Ke7 {[%clk 00:00:39]}
{[%emt 00:00:26]} 49. h3 {[%clk 00:36:14]} {[%emt 00:00:51]} Rxh3 {[%clk
00:00:38]} {[%emt 00:00:30]} 50. f6+ {[%clk 00:36:22]} {[%emt 00:00:22]} Kxf6
{[%clk 00:00:42]} {[%emt 00:00:27]} 51. e7 {[%clk 00:36:46]} {[%emt 00:00:36]}
Kxe5 {[%clk 00:01:02]} {[%emt 00:00:09]} 52. e8=Q+ {[%clk 00:37:11]} Kf5 {[%clk
00:01:11]} {[%emt 00:00:04]} 53. Qd7+ {[%clk 00:37:35]} Kg5 {[%clk 00:01:31]}
{[%emt 00:00:37]} 54. Qxb7 {[%clk 00:37:50]} {[%emt 00:00:10]} Rf3 {[%clk
00:01:42]} {[%emt 00:00:04]} 55. Qd5+ {[%clk 00:37:25]} {[%emt 00:00:46]} Kg6
{[%clk 00:01:48]} {[%emt 00:01:06]} 56. Qg8+ {[%clk 00:37:33]} Kf5 {[%clk
00:01:32]} {[%emt 00:00:26]} 57. Qg7 {[%clk 00:37:52]} {[%emt 00:00:14]} Rh3
{[%clk 00:01:39]} {[%emt 00:00:20]} 58. Kf2 {[%clk 00:36:53]} {[%emt 00:01:30]}
Rf3+ {[%clk 00:01:56]} {[%emt 00:00:35]} 59. Ke2 {[%clk 00:37:19]} {[%emt
00:00:13]} Rh3 {[%clk 00:02:13]} 60. Qg8 {[%clk 00:31:51]} {[%emt 00:05:40]}
Rf3 {[%clk 00:02:33]} {[%emt 00:00:34]} 61. Qe8 {[%clk 00:31:36]} {[%emt
00:00:20]} Rh3 {[%clk 00:02:51]} {[%emt 00:00:12]} 62. Qc6 {[%clk 00:30:54]}
{[%emt 00:01:52]} Rf3 {[%clk 00:03:01]} {[%emt 00:00:08]} 63. Qd5+ {[%clk
00:30:26]} {[%emt 00:00:31]} Kg6 {[%clk 00:02:54]} {[%emt 00:00:41]} 64. Qg8+
{[%clk 00:30:25]} {[%emt 00:00:28]} Kf5 {[%clk 00:03:14]} {[%emt 00:00:38]} 65.
Qh7+ {[%clk 00:30:41]} Kg5 {[%clk 00:03:34]} {[%emt 00:00:05]} 66. Qe7+ {[%clk
00:30:15]} {[%emt 00:00:46]} Kf5 {[%clk 00:03:58]} {[%emt 00:00:17]} 67. Qf7+
{[%clk 00:28:29]} {[%emt 00:02:19]} Kg5 {[%clk 00:04:03]} {[%emt 00:00:11]} 68.
Qxf3 {[%clk 00:28:22]} {[%emt 00:00:40]} gxf3+ {[%clk 00:04:27]} {[%emt
00:00:21]} 69. Kxf3 1/2-1/2

[Event "Weekendtournooi Groningen & PK NOSBO"]
[Site "Groningen, Netherlands"]
[Date "2023.05.20"]
[Round "4.7"]
[White "Noordenbos, Daan"]
[Black "Basinas, Konstantinos"]
[Result "1-0"]
[TimeControl "90min + 30sec/move"]
[WhiteElo "2076"]
[BlackElo "1902"]

1. e4 {[%clk 01:30:57]} {[%emt 00:08:28]} e5 {[%clk 01:30:29]} 2. Nf3 {[%clk
01:30:50]} {[%emt 00:00:16]} Nc6 {[%clk 01:30:49]} 3. Bb5 {[%clk 01:31:14]} a6
{[%clk 01:30:49]} 4. Ba4 {[%clk 01:31:41]} Nf6 {[%clk 01:30:58]} 5. O-O {[%clk
01:32:01]} b5 {[%clk 01:30:43]} 6. Bb3 {[%clk 01:32:28]} Be7 {[%clk 01:29:22]}
7. Re1 {[%clk 01:32:07]} d6 {[%clk 01:27:50]} 8. a4 {[%clk 01:32:04]} Bg4
{[%clk 01:19:26]} 9. c3 {[%clk 01:28:37]} O-O {[%clk 01:16:13]} 10. h3 {[%clk
01:24:33]} Bh5 {[%clk 01:15:16]} 11. d3 {[%clk 01:17:19]} Na5 {[%clk 01:13:59]}
12. Bc2 {[%clk 01:15:30]} c5 {[%clk 01:12:29]} 13. Nbd2 {[%clk 01:11:15]} h6
{[%clk 01:05:04]} 14. Nf1 {[%clk 01:10:45]} Nh7 {[%clk 00:52:25]} 15. Ng3
{[%clk 01:07:26]} Bg6 {[%clk 00:52:29]} 16. Nf5 {[%clk 01:00:59]} Bxf5 {[%clk
00:45:45]} 17. exf5 {[%clk 01:01:11]} Re8 {[%clk 00:35:45]} {[%emt 00:09:12]}
18. Nh2 {[%clk 00:48:28]} {[%emt 00:13:10]} Qc7 {[%clk 00:33:01]} {[%emt
00:03:40]} 19. Qf3 {[%clk 00:46:28]} {[%emt 00:02:07]} Nf6 {[%clk 00:30:52]}
{[%emt 00:02:39]} 20. Ng4 {[%clk 00:45:15]} {[%emt 00:02:10]} Qc6 {[%clk
00:27:24]} {[%emt 00:03:50]} 21. Nxf6+ {[%clk 00:37:02]} {[%emt 00:08:25]} Bxf6
{[%clk 00:27:41]} {[%emt 00:00:11]} 22. Qg4 {[%clk 00:37:19]} {[%emt 00:00:43]}
Kh7 {[%clk 00:27:08]} {[%emt 00:00:33]} 23. Qh5 {[%clk 00:37:13]} {[%emt
00:00:36]} Kg8 {[%clk 00:24:38]} {[%emt 00:03:00]} 24. Re4 {[%clk 00:35:19]}
{[%emt 00:02:24]} d5 {[%clk 00:24:25]} {[%emt 00:00:48]} 25. Rg4 {[%clk
00:35:29]} {[%emt 00:00:15]} Kf8 {[%clk 00:24:44]} {[%emt 00:00:46]} 26. Bd2
{[%clk 00:31:26]} {[%emt 00:03:59]} c4 {[%clk 00:23:29]} {[%emt 00:02:02]} 27.
Be3 {[%clk 00:24:41]} {[%emt 00:06:58]} Nb7 {[%clk 00:22:31]} {[%emt 00:01:28]}
28. d4 {[%clk 00:23:27]} {[%emt 00:01:44]} e4 {[%clk 00:21:36]} {[%emt
00:01:55]} 29. h4 {[%clk 00:20:28]} {[%emt 00:03:00]} b4 {[%clk 00:19:41]}
{[%emt 00:02:25]} 30. Rf4 {[%clk 00:16:45]} {[%emt 00:04:12]} bxc3 {[%clk
00:19:17]} {[%emt 00:00:56]} 31. bxc3 {[%clk 00:17:10]} {[%emt 00:00:05]} Na5
{[%clk 00:16:21]} {[%emt 00:03:38]} 32. g4 {[%clk 00:14:59]} {[%emt 00:02:28]}
Bd8 {[%clk 00:15:30]} {[%emt 00:01:32]} 33. g5 {[%clk 00:13:45]} {[%emt
00:01:32]} Nb3 {[%clk 00:14:20]} {[%emt 00:01:41]} 34. Ra2 {[%clk 00:12:52]}
{[%emt 00:01:44]} Bc7 {[%clk 00:11:16]} {[%emt 00:03:12]} 35. Rg4 {[%clk
00:12:08]} {[%emt 00:01:15]} hxg5 {[%clk 00:11:00]} {[%emt 00:00:45]} 36. hxg5
{[%clk 00:12:15]} {[%emt 00:00:51]} Ke7 {[%clk 00:10:05]} {[%emt 00:01:18]} 37.
Qh7 {[%clk 00:09:52]} {[%emt 00:02:33]} Rh8 {[%clk 00:08:59]} {[%emt 00:01:43]}
38. Qxg7 {[%clk 00:02:45]} {[%emt 00:07:29]} Rag8 {[%clk 00:09:16]} {[%emt
00:00:37]} 39. Qf6+ {[%clk 00:01:04]} {[%emt 00:01:51]} Qxf6 {[%clk 00:09:43]}
{[%emt 00:00:11]} 40. gxf6+ {[%clk 00:01:22]} {[%emt 00:00:10]} Kxf6 {[%clk
00:10:06]} 41. Rxg8 {[%clk 00:01:13]} {[%emt 00:00:37]} Rxg8+ {[%clk 00:10:31]}
{[%emt 00:00:40]} 42. Kf1 {[%clk 00:01:35]} Rb8 {[%clk 00:09:25]} {[%emt
00:01:10]} 43. Ke2 {[%clk 00:01:11]} {[%emt 00:00:52]} Ba5 {[%clk 00:08:16]}
{[%emt 00:01:39]} 44. Bd2 {[%clk 00:01:38]} {[%emt 00:00:32]} Kxf5 {[%clk
00:08:20]} {[%emt 00:00:14]} 45. Bd1 {[%clk 00:00:52]} {[%emt 00:01:21]} Nxd2
{[%clk 00:07:58]} {[%emt 00:00:30]} 46. Kxd2 {[%clk 00:01:18]} {[%emt
00:00:38]} Kg5 {[%clk 00:07:25]} {[%emt 00:00:30]} 47. Bc2 {[%clk 00:01:03]}
{[%emt 00:00:45]} f5 {[%clk 00:07:49]} {[%emt 00:00:09]} 48. Ra1 {[%clk
00:01:21]} {[%emt 00:00:09]} Kf4 {[%clk 00:07:33]} {[%emt 00:00:46]} 49. Rh1
{[%clk 00:01:07]} {[%emt 00:00:43]} Kf3 {[%clk 00:07:15]} {[%emt 00:00:48]} 50.
Rh2 {[%clk 00:01:34]} {[%emt 00:00:37]} f4 {[%clk 00:07:08]} {[%emt 00:00:12]}
51. Bd1+ {[%clk 00:02:03]} 1-0

[Event "Weekendtournooi Groningen & PK NOSBO"]
[Site "Groningen, Netherlands"]
[Date "2023.05.20"]
[Round "4.8"]
[White "Hommes, Elmar"]
[Black "Aden, Meino"]
[Result "1-0"]
[TimeControl "90min + 30sec/move"]
[WhiteElo "2050"]
[BlackElo "1897"]

1. Nf3 {[%clk 01:28:07]} Nf6 {[%clk 01:30:55]} 2. c4 {[%clk 01:28:25]} e6
{[%clk 01:30:57]} 3. d4 {[%clk 01:28:34]} d5 {[%clk 01:31:00]} 4. g3 {[%clk
01:28:31]} c6 {[%clk 01:31:20]} 5. Bg2 {[%clk 01:28:50]} Be7 {[%clk 01:31:44]}
6. O-O {[%clk 01:29:10]} O-O {[%clk 01:32:09]} 7. Qc2 {[%clk 01:29:30]} Nbd7
{[%clk 01:32:32]} 8. Bf4 {[%clk 01:29:49]} b6 {[%clk 01:32:06]} 9. cxd5 {[%clk
01:25:42]} cxd5 {[%clk 01:32:25]} 10. Qc6 {[%clk 01:13:11]} Ba6 {[%clk
01:30:32]} 11. Nc3 {[%clk 01:13:25]} Qc8 {[%clk 01:25:46]} 12. Qa4 {[%clk
01:11:51]} Qb7 {[%clk 01:24:18]} 13. Rfe1 {[%clk 01:04:29]} b5 {[%clk
01:23:06]} 14. Qd1 {[%clk 01:02:45]} {[%emt 00:00:31]} b4 {[%clk 01:22:28]} 15.
Na4 {[%clk 01:01:32]} Rac8 {[%clk 01:21:07]} 16. Ne5 {[%clk 00:53:55]} Nb6
{[%clk 01:19:49]} 17. Nc5 {[%clk 00:44:51]} Bxc5 {[%clk 01:16:07]} 18. dxc5
{[%clk 00:45:19]} Rxc5 {[%clk 01:16:26]} {[%emt 00:00:03]} 19. a3 {[%clk
00:45:36]} bxa3 {[%clk 01:14:18]} 20. Rxa3 {[%clk 00:45:38]} Nc4 {[%clk
01:13:10]} 21. Nxc4 {[%clk 00:44:58]} Bxc4 {[%clk 01:12:28]} 22. Bd6 {[%clk
00:43:57]} Rfc8 {[%clk 01:12:32]} 23. Bxc5 {[%clk 00:44:06]} Rxc5 {[%clk
01:12:55]} 24. Qd4 {[%clk 00:43:00]} Qc7 {[%clk 01:11:39]} 25. b4 {[%clk
00:41:16]} {[%emt 00:00:10]} Rb5 {[%clk 01:09:36]} {[%emt 00:02:34]} 26. Rxa7
{[%clk 00:40:59]} {[%emt 00:00:47]} Qc6 {[%clk 01:09:12]} {[%emt 00:00:57]} 27.
Qxc4 {[%clk 00:40:08]} {[%emt 00:01:20]} 1-0

[Event "Weekendtournooi Groningen & PK NOSBO"]
[Site "Groningen, Netherlands"]
[Date "2023.05.20"]
[Round "4.9"]
[White "Westerlaan, Sander"]
[Black "Karsdorp, Nico"]
[Result "1-0"]
[TimeControl "90min + 30sec/move"]
[WhiteElo "1960"]
[BlackElo "1746"]

1. Nf3 {[%clk 01:30:30]} f5 {[%clk 01:30:58]} {[%emt 00:00:04]} 2. d4 {[%clk
01:31:22]} Nf6 {[%clk 01:31:11]} 3. c4 {[%clk 01:31:48]} e6 {[%clk 01:31:27]} 4.
g3 {[%clk 01:31:20]} d5 {[%clk 01:31:29]} {[%emt 00:02:32]} 5. Bg2 {[%clk
01:31:42]} c6 {[%clk 01:31:40]} 6. O-O {[%clk 01:31:53]} Bd6 {[%clk 01:31:39]}
7. Bf4 {[%clk 01:24:30]} Bxf4 {[%clk 01:31:47]} {[%emt 00:02:22]} 8. gxf4
{[%clk 01:24:53]} O-O {[%clk 01:31:49]} 9. e3 {[%clk 01:19:43]} Bd7 {[%clk
01:29:28]} 10. Nbd2 {[%clk 01:13:56]} {[%emt 00:00:05]} Be8 {[%clk 01:25:45]}
11. Qc2 {[%clk 01:10:22]} Ne4 {[%clk 01:25:29]} 12. Ne5 {[%clk 01:05:10]} Nd7
{[%clk 01:23:56]} 13. Nxd7 {[%clk 01:02:37]} {[%emt 00:02:33]} Qxd7 {[%clk
01:21:19]} 14. Nf3 {[%clk 01:03:02]} Qe7 {[%clk 01:17:24]} 15. Ne5 {[%clk
00:57:51]} Qh4 {[%clk 01:12:14]} 16. f3 {[%clk 00:47:00]} {[%emt 00:02:22]} Nf6
{[%clk 01:08:00]} 17. c5 {[%clk 00:46:13]} Nh5 {[%clk 01:06:42]} 18. Rf2 {[%clk
00:44:31]} Rf6 {[%clk 01:05:12]} 19. Bf1 {[%clk 00:44:18]} Rh6 {[%clk
01:02:12]} {[%emt 00:00:10]} 20. Bd3 {[%clk 00:43:26]} Nxf4 {[%clk 00:48:31]}
{[%emt 00:00:59]} 21. exf4 {[%clk 00:40:16]} {[%emt 00:03:41]} Qxf4 {[%clk
00:48:30]} {[%emt 00:00:42]} 22. Qc3 {[%clk 00:37:57]} {[%emt 00:02:38]} Rh4
{[%clk 00:48:50]} {[%emt 00:00:10]} 23. Bf1 {[%clk 00:36:44]} {[%emt 00:01:45]}
Qxd4 {[%clk 00:49:00]} {[%emt 00:00:18]} 24. Qxd4 {[%clk 00:37:05]} {[%emt
00:00:10]} Rxd4 {[%clk 00:49:23]} {[%emt 00:00:06]} 25. f4 {[%clk 00:35:24]}
{[%emt 00:02:11]} Bh5 {[%clk 00:48:58]} {[%emt 00:00:55]} 26. Rc1 {[%clk
00:30:53]} {[%emt 00:05:06]} Rf8 {[%clk 00:47:01]} {[%emt 00:02:23]} 27. a3
{[%clk 00:29:46]} {[%emt 00:01:37]} Rf6 {[%clk 00:46:49]} {[%emt 00:00:41]} 28.
Rc3 {[%clk 00:24:10]} {[%emt 00:06:06]} Bd1 {[%clk 00:41:32]} {[%emt 00:05:46]}
29. Ba6 {[%clk 00:14:57]} {[%emt 00:09:45]} bxa6 {[%clk 00:40:36]} {[%emt
00:01:25]} 30. Nxc6 {[%clk 00:15:21]} {[%emt 00:00:06]} Rc4 {[%clk 00:29:43]}
{[%emt 00:11:24]} 31. Rxc4 {[%clk 00:14:48]} {[%emt 00:01:06]} dxc4 {[%clk
00:30:11]} 32. Ne5 {[%clk 00:11:38]} {[%emt 00:03:37]} c3 {[%clk 00:27:57]}
{[%emt 00:02:45]} 33. bxc3 {[%clk 00:11:22]} {[%emt 00:00:45]} Rf8 {[%clk
00:21:02]} {[%emt 00:07:26]} 34. c6 {[%clk 00:09:48]} {[%emt 00:02:13]} Bb3
{[%clk 00:10:40]} {[%emt 00:10:43]} 35. Rb2 {[%clk 00:09:07]} {[%emt 00:01:11]}
Bd5 {[%clk 00:09:52]} {[%emt 00:01:18]} 36. c7 {[%emt 00:01:01]} 1-0